{"text_format":"3","workbook":"xlsx","n_sheets":4,"sheets":["מטרות","דיאטה","פעילות גופנית","חישובים בתרשים"],"not_rendered":{"charts":2,"external_links":1,"defined_names":19},"read":"whole","date_system":"1900"}

{"sheet":"מטרות","index":0,"n_rows":16,"n_cols":11,"rows_kept":16,"merged":[[2,1,3,1],[7,1,8,1]]}
[null,{"$f":"TODAY()","v":"2017-05-09"},"מטרות",{"$nulls":6},"פעילות גופנית","דיאטה"]
[null,"תאריך התחלה","יומן דיאטה ופעילות גופנית"]
[null,{"$f":"StartDate+121","v":"2017-09-07"},"ניתוח דיאטה"]
[]
[null,"תאריך סיום"]
[null,{"v":100,"d":"100.00"}]
[null,"משקל התחלתי"]
[null,{"v":80,"d":"80.00"},"ניתוח פעילות גופנית"]
[]
[null,"משקל סופי"]
[null,{"$f":"StartWeight-EndWeight","v":20}]
[null,"מידת ירידה במשקל"]
[null,{"$f":"EndDate-StartDate","v":121}]
[null,"ימי ירידה במשקל"]
[null,{"$f":"WeightGoal/B13","v":{"v":0.1652892561983471,"d":"0.17"}}]
[null,"ירידה במשקל בכל יום"]

{"sheet":"דיאטה","index":1,"n_rows":19,"n_cols":9,"rows_kept":19}
[null,"דיאטה",{"$nulls":4},"מטרות","פעילות גופנית"]
[null,{"$f":"כותרת_משנה","v":"יומן דיאטה ופעילות גופנית"}]
[null,"תאריך","שעה","תיאור","קלוריות","פחמימות","חלבון","שומנים","הערות"]
[null,{"$f":"StartDate","v":"2017-05-09"},"07:00:00","קפה",1,0,0,0,"קפה בבוקר"]
[null,{"$f":"StartDate","v":"2017-05-09"},"08:00:00","בייגל",10,10,2,10,"ארוחת בוקר קלה"]
[null,{"$f":"StartDate","v":"2017-05-09"},"12:00:00","ארוחת צהריים",283,46,18,{"v":3.5,"d":"4"},"כריך הודו"]
[null,{"$f":"StartDate","v":"2017-05-09"},"19:00:00","ארוחת ערב",500,42,35,25,"תבשיל תפוחי אדמה"]
[null,{"$f":"StartDate+1","v":"2017-05-10"},"07:00:00","קפה",1,0,0,0,"קפה בבוקר"]
[null,{"$f":"StartDate+1","v":"2017-05-10"},"08:00:00","טוסט",10,10,2,10,"ארוחת בוקר קלה"]
[null,{"$f":"StartDate+1","v":"2017-05-10"},"12:00:00","ארוחת צהריים",189,26,3,8,"כריך"]
[null,{"$f":"StartDate+1","v":"2017-05-10"},"19:00:00","ארוחת ערב",477,62,{"v":13.5,"d":"14"},21,"ארוחת ערב"]
[null,{"$f":"StartDate+2","v":"2017-05-11"},"07:00:00","קפה",1,0,0,0,"קפה בבוקר"]
[null,{"$f":"StartDate+2","v":"2017-05-11"},"08:00:00","בייגל",245,48,10,{"v":1.5,"d":"2"},"ארוחת בוקר קלה"]
[null,{"$f":"StartDate+2","v":"2017-05-11"},"12:00:00","ארוחת צהריים",247,11,43,5,"סלט"]
[null,{"$f":"StartDate+2","v":"2017-05-11"},"19:00:00","ארוחת ערב",456,64,32,22,"ארוחת ערב"]
[null,{"$f":"StartDate+3","v":"2017-05-12"},"07:00:00","טוסט",10,10,2,10,"ארוחת בוקר קלה"]
[null,{"$f":"StartDate+3","v":"2017-05-12"},"10:00:00","קפה",135,{"v":12.36,"d":"12"},{"v":8.81,"d":"9"},{"v":5.51,"d":"6"},"לאטה"]
[null,{"$f":"StartDate+3","v":"2017-05-12"},"12:15:00","ארוחת צהריים",184,7,{"v":5.43,"d":"5"},15,"סלט"]
[null,{"$f":"StartDate+5","v":"2017-05-14"},"19:00:00","ארוחת ערב",477,62,{"v":13.5,"d":"14"},21,"ארוחת ערב"]

{"sheet":"פעילות גופנית","index":2,"n_rows":20,"n_cols":7,"rows_kept":20}
[null,"פעילות גופנית",{"$nulls":3},"דיאטה","מטרות"]
[null,{"$f":"כותרת_משנה","v":"יומן דיאטה ופעילות גופנית"}]
[null,"תאריך","משך זמן (דקות)","קלוריות שנשרפו","הערות"]
[null,{"$f":"StartDate+4","v":"2017-05-13"},30,120,"אימון הליכון"]
[null,{"$f":"B4+1","v":"2017-05-14"},60,180,"פעילות אירובית קלה"]
[null,{"$f":"B5+1","v":"2017-05-15"},60,350,"אימוץ מאומץ"]
[null,"2017-05-16",30,150,"אימון הליכון"]
[null,"2017-05-17",25,125,"ריצה"]
[null,"2017-05-18",20,285,"אימון הליכון"]
[null,"2017-05-19",40,205,"ריצה"]
[null,"2017-05-20",30,335,"ריצה"]
[null,"2017-05-21",40,175,"ריצה"]
[null,"2017-05-22",45,325,"אימון הליכון"]
[null,"2017-05-23",40,270,"ריצה"]
[null,"2017-05-24",20,295,"אימון הליכון"]
[null,"2017-05-25",45,350,"ריצה"]
[null,"2017-05-26",35,320,"ריצה"]
[null,"2017-05-27",40,290,"ריצה"]
[null,{"$f":"B18+1","v":"2017-05-28"},25,265,"אימון הליכון"]
[null,"2017-05-29",20,195,"ריצה"]

{"sheet":"חישובים בתרשים","index":3,"n_rows":36,"n_cols":10,"rows_kept":36,"hidden":true,"merged":[[1,1,1,9],[19,1,19,9]]}
[]
[null,"נתוני תרשים של ניתוח דיאטה"]
[]
[null,"שורה התחלתית",{"$f":"ROW(דיאטה[[#Headers],[תאריך]])+1","v":4},"תאריך","יום","שומנים","חלבון","פחמימות","קלוריות","מספר"]
[null,"ערך דיאטה אחרון",{"$f":"MATCH(9.99E+307,דיאטה[תאריך])+DietRowStart-1","v":19},{"$f":"IFERROR(IF(INDEX(דיאטה[],DietLastEnd-DietRowStart-J5,1)<>\"\",INDEX(דיאטה[],DietLastEnd-DietRowStart-J5,1),\"\"),\"\")","v":"2017-05-09"},{"$f":"UPPER(TEXT(D5,\"DDD\"))","v":"יום ג"},{"$f":"IFERROR((IF(INDEX(דיאטה[],DietLastEnd-DietRowStart-J5,1)<>\"\",INDEX(דיאטה[],DietLastEnd-DietRowStart-J5,7),NA())),NA())","v":3.5},{"$f":"IFERROR((IF(INDEX(דיאטה[],DietLastEnd-DietRowStart-J5,1)<>\"\",INDEX(דיאטה[],DietLastEnd-DietRowStart-J5,6),NA())),NA())","v":18},{"$f":"IFERROR((IF(INDEX(דיאטה[],DietLastEnd-DietRowStart-J5,1)<>\"\",INDEX(דיאטה[],DietLastEnd-DietRowStart-J5,5),NA())),NA())","v":46},{"$f":"IFERROR((IF(INDEX(דיאטה[],DietLastEnd-DietRowStart-J5,1)<>\"\",INDEX(דיאטה[],DietLastEnd-DietRowStart-J5,4),NA())),NA())","v":283},12]
[{"$nulls":3},{"$f":"IFERROR(IF(INDEX(דיאטה[],DietLastEnd-DietRowStart-J6,1)<>\"\",INDEX(דיאטה[],DietLastEnd-DietRowStart-J6,1),\"\"),\"\")","v":"2017-05-09"},"יום ג",{"$f":"IFERROR((IF(INDEX(דיאטה[],DietLastEnd-DietRowStart-J6,1)<>\"\",INDEX(דיאטה[],DietLastEnd-DietRowStart-J6,7),NA())),NA())","v":25},{"$f":"IFERROR((IF(INDEX(דיאטה[],DietLastEnd-DietRowStart-J6,1)<>\"\",INDEX(דיאטה[],DietLastEnd-DietRowStart-J6,6),NA())),NA())","v":35},{"$f":"IFERROR((IF(INDEX(דיאטה[],DietLastEnd-DietRowStart-J6,1)<>\"\",INDEX(דיאטה[],DietLastEnd-DietRowStart-J6,5),NA())),NA())","v":42},{"$f":"IFERROR((IF(INDEX(דיאטה[],DietLastEnd-DietRowStart-J6,1)<>\"\",INDEX(דיאטה[],DietLastEnd-DietRowStart-J6,4),NA())),NA())","v":500},11]
[{"$nulls":3},{"$f":"IFERROR(IF(INDEX(דיאטה[],DietLastEnd-DietRowStart-J7,1)<>\"\",INDEX(דיאטה[],DietLastEnd-DietRowStart-J7,1),\"\"),\"\")","v":"2017-05-10"},"יום ד",{"$f":"IFERROR((IF(INDEX(דיאטה[],DietLastEnd-DietRowStart-J7,1)<>\"\",INDEX(דיאטה[],DietLastEnd-DietRowStart-J7,7),NA())),NA())","v":0},{"$f":"IFERROR((IF(INDEX(דיאטה[],DietLastEnd-DietRowStart-J7,1)<>\"\",INDEX(דיאטה[],DietLastEnd-DietRowStart-J7,6),NA())),NA())","v":0},{"$f":"IFERROR((IF(INDEX(דיאטה[],DietLastEnd-DietRowStart-J7,1)<>\"\",INDEX(דיאטה[],DietLastEnd-DietRowStart-J7,5),NA())),NA())","v":0},{"$f":"IFERROR((IF(INDEX(דיאטה[],DietLastEnd-DietRowStart-J7,1)<>\"\",INDEX(דיאטה[],DietLastEnd-DietRowStart-J7,4),NA())),NA())","v":1},10]
[{"$nulls":3},{"$f":"IFERROR(IF(INDEX(דיאטה[],DietLastEnd-DietRowStart-J8,1)<>\"\",INDEX(דיאטה[],DietLastEnd-DietRowStart-J8,1),\"\"),\"\")","v":"2017-05-10"},"יום ד",{"$f":"IFERROR((IF(INDEX(דיאטה[],DietLastEnd-DietRowStart-J8,1)<>\"\",INDEX(דיאטה[],DietLastEnd-DietRowStart-J8,7),NA())),NA())","v":10},{"$f":"IFERROR((IF(INDEX(דיאטה[],DietLastEnd-DietRowStart-J8,1)<>\"\",INDEX(דיאטה[],DietLastEnd-DietRowStart-J8,6),NA())),NA())","v":2},{"$f":"IFERROR((IF(INDEX(דיאטה[],DietLastEnd-DietRowStart-J8,1)<>\"\",INDEX(דיאטה[],DietLastEnd-DietRowStart-J8,5),NA())),NA())","v":10},{"$f":"IFERROR((IF(INDEX(דיאטה[],DietLastEnd-DietRowStart-J8,1)<>\"\",INDEX(דיאטה[],DietLastEnd-DietRowStart-J8,4),NA())),NA())","v":10},9]
[{"$nulls":3},{"$f":"IFERROR(IF(INDEX(דיאטה[],DietLastEnd-DietRowStart-J9,1)<>\"\",INDEX(דיאטה[],DietLastEnd-DietRowStart-J9,1),\"\"),\"\")","v":"2017-05-10"},"יום ד",{"$f":"IFERROR((IF(INDEX(דיאטה[],DietLastEnd-DietRowStart-J9,1)<>\"\",INDEX(דיאטה[],DietLastEnd-DietRowStart-J9,7),NA())),NA())","v":8},{"$f":"IFERROR((IF(INDEX(דיאטה[],DietLastEnd-DietRowStart-J9,1)<>\"\",INDEX(דיאטה[],DietLastEnd-DietRowStart-J9,6),NA())),NA())","v":3},{"$f":"IFERROR((IF(INDEX(דיאטה[],DietLastEnd-DietRowStart-J9,1)<>\"\",INDEX(דיאטה[],DietLastEnd-DietRowStart-J9,5),NA())),NA())","v":26},{"$f":"IFERROR((IF(INDEX(דיאטה[],DietLastEnd-DietRowStart-J9,1)<>\"\",INDEX(דיאטה[],DietLastEnd-DietRowStart-J9,4),NA())),NA())","v":189},8]
[{"$nulls":3},{"$f":"IFERROR(IF(INDEX(דיאטה[],DietLastEnd-DietRowStart-J10,1)<>\"\",INDEX(דיאטה[],DietLastEnd-DietRowStart-J10,1),\"\"),\"\")","v":"2017-05-10"},"יום ד",{"$f":"IFERROR((IF(INDEX(דיאטה[],DietLastEnd-DietRowStart-J10,1)<>\"\",INDEX(דיאטה[],DietLastEnd-DietRowStart-J10,7),NA())),NA())","v":21},{"$f":"IFERROR((IF(INDEX(דיאטה[],DietLastEnd-DietRowStart-J10,1)<>\"\",INDEX(דיאטה[],DietLastEnd-DietRowStart-J10,6),NA())),NA())","v":13.5},{"$f":"IFERROR((IF(INDEX(דיאטה[],DietLastEnd-DietRowStart-J10,1)<>\"\",INDEX(דיאטה[],DietLastEnd-DietRowStart-J10,5),NA())),NA())","v":62},{"$f":"IFERROR((IF(INDEX(דיאטה[],DietLastEnd-DietRowStart-J10,1)<>\"\",INDEX(דיאטה[],DietLastEnd-DietRowStart-J10,4),NA())),NA())","v":477},7]
[{"$nulls":3},{"$f":"IFERROR(IF(INDEX(דיאטה[],DietLastEnd-DietRowStart-J11,1)<>\"\",INDEX(דיאטה[],DietLastEnd-DietRowStart-J11,1),\"\"),\"\")","v":"2017-05-11"},"יום ה",{"$f":"IFERROR((IF(INDEX(דיאטה[],DietLastEnd-DietRowStart-J11,1)<>\"\",INDEX(דיאטה[],DietLastEnd-DietRowStart-J11,7),NA())),NA())","v":0},{"$f":"IFERROR((IF(INDEX(דיאטה[],DietLastEnd-DietRowStart-J11,1)<>\"\",INDEX(דיאטה[],DietLastEnd-DietRowStart-J11,6),NA())),NA())","v":0},{"$f":"IFERROR((IF(INDEX(דיאטה[],DietLastEnd-DietRowStart-J11,1)<>\"\",INDEX(דיאטה[],DietLastEnd-DietRowStart-J11,5),NA())),NA())","v":0},{"$f":"IFERROR((IF(INDEX(דיאטה[],DietLastEnd-DietRowStart-J11,1)<>\"\",INDEX(דיאטה[],DietLastEnd-DietRowStart-J11,4),NA())),NA())","v":1},6]
[{"$nulls":3},{"$f":"IFERROR(IF(INDEX(דיאטה[],DietLastEnd-DietRowStart-J12,1)<>\"\",INDEX(דיאטה[],DietLastEnd-DietRowStart-J12,1),\"\"),\"\")","v":"2017-05-11"},"יום ה",{"$f":"IFERROR((IF(INDEX(דיאטה[],DietLastEnd-DietRowStart-J12,1)<>\"\",INDEX(דיאטה[],DietLastEnd-DietRowStart-J12,7),NA())),NA())","v":1.5},{"$f":"IFERROR((IF(INDEX(דיאטה[],DietLastEnd-DietRowStart-J12,1)<>\"\",INDEX(דיאטה[],DietLastEnd-DietRowStart-J12,6),NA())),NA())","v":10},{"$f":"IFERROR((IF(INDEX(דיאטה[],DietLastEnd-DietRowStart-J12,1)<>\"\",INDEX(דיאטה[],DietLastEnd-DietRowStart-J12,5),NA())),NA())","v":48},{"$f":"IFERROR((IF(INDEX(דיאטה[],DietLastEnd-DietRowStart-J12,1)<>\"\",INDEX(דיאטה[],DietLastEnd-DietRowStart-J12,4),NA())),NA())","v":245},5]
[{"$nulls":3},{"$f":"IFERROR(IF(INDEX(דיאטה[],DietLastEnd-DietRowStart-J13,1)<>\"\",INDEX(דיאטה[],DietLastEnd-DietRowStart-J13,1),\"\"),\"\")","v":"2017-05-11"},"יום ה",{"$f":"IFERROR((IF(INDEX(דיאטה[],DietLastEnd-DietRowStart-J13,1)<>\"\",INDEX(דיאטה[],DietLastEnd-DietRowStart-J13,7),NA())),NA())","v":5},{"$f":"IFERROR((IF(INDEX(דיאטה[],DietLastEnd-DietRowStart-J13,1)<>\"\",INDEX(דיאטה[],DietLastEnd-DietRowStart-J13,6),NA())),NA())","v":43},{"$f":"IFERROR((IF(INDEX(דיאטה[],DietLastEnd-DietRowStart-J13,1)<>\"\",INDEX(דיאטה[],DietLastEnd-DietRowStart-J13,5),NA())),NA())","v":11},{"$f":"IFERROR((IF(INDEX(דיאטה[],DietLastEnd-DietRowStart-J13,1)<>\"\",INDEX(דיאטה[],DietLastEnd-DietRowStart-J13,4),NA())),NA())","v":247},4]
[{"$nulls":3},{"$f":"IFERROR(IF(INDEX(דיאטה[],DietLastEnd-DietRowStart-J14,1)<>\"\",INDEX(דיאטה[],DietLastEnd-DietRowStart-J14,1),\"\"),\"\")","v":"2017-05-11"},"יום ה",{"$f":"IFERROR((IF(INDEX(דיאטה[],DietLastEnd-DietRowStart-J14,1)<>\"\",INDEX(דיאטה[],DietLastEnd-DietRowStart-J14,7),NA())),NA())","v":22},{"$f":"IFERROR((IF(INDEX(דיאטה[],DietLastEnd-DietRowStart-J14,1)<>\"\",INDEX(דיאטה[],DietLastEnd-DietRowStart-J14,6),NA())),NA())","v":32},{"$f":"IFERROR((IF(INDEX(דיאטה[],DietLastEnd-DietRowStart-J14,1)<>\"\",INDEX(דיאטה[],DietLastEnd-DietRowStart-J14,5),NA())),NA())","v":64},{"$f":"IFERROR((IF(INDEX(דיאטה[],DietLastEnd-DietRowStart-J14,1)<>\"\",INDEX(דיאטה[],DietLastEnd-DietRowStart-J14,4),NA())),NA())","v":456},3]
[{"$nulls":3},{"$f":"IFERROR(IF(INDEX(דיאטה[],DietLastEnd-DietRowStart-J15,1)<>\"\",INDEX(דיאטה[],DietLastEnd-DietRowStart-J15,1),\"\"),\"\")","v":"2017-05-12"},"יום ו",{"$f":"IFERROR((IF(INDEX(דיאטה[],DietLastEnd-DietRowStart-J15,1)<>\"\",INDEX(דיאטה[],DietLastEnd-DietRowStart-J15,7),NA())),NA())","v":10},{"$f":"IFERROR((IF(INDEX(דיאטה[],DietLastEnd-DietRowStart-J15,1)<>\"\",INDEX(דיאטה[],DietLastEnd-DietRowStart-J15,6),NA())),NA())","v":2},{"$f":"IFERROR((IF(INDEX(דיאטה[],DietLastEnd-DietRowStart-J15,1)<>\"\",INDEX(דיאטה[],DietLastEnd-DietRowStart-J15,5),NA())),NA())","v":10},{"$f":"IFERROR((IF(INDEX(דיאטה[],DietLastEnd-DietRowStart-J15,1)<>\"\",INDEX(דיאטה[],DietLastEnd-DietRowStart-J15,4),NA())),NA())","v":10},2]
[{"$nulls":3},{"$f":"IFERROR(IF(INDEX(דיאטה[],DietLastEnd-DietRowStart-J16,1)<>\"\",INDEX(דיאטה[],DietLastEnd-DietRowStart-J16,1),\"\"),\"\")","v":"2017-05-12"},"יום ו",{"$f":"IFERROR((IF(INDEX(דיאטה[],DietLastEnd-DietRowStart-J16,1)<>\"\",INDEX(דיאטה[],DietLastEnd-DietRowStart-J16,7),NA())),NA())","v":5.51},{"$f":"IFERROR((IF(INDEX(דיאטה[],DietLastEnd-DietRowStart-J16,1)<>\"\",INDEX(דיאטה[],DietLastEnd-DietRowStart-J16,6),NA())),NA())","v":8.81},{"$f":"IFERROR((IF(INDEX(דיאטה[],DietLastEnd-DietRowStart-J16,1)<>\"\",INDEX(דיאטה[],DietLastEnd-DietRowStart-J16,5),NA())),NA())","v":12.36},{"$f":"IFERROR((IF(INDEX(דיאטה[],DietLastEnd-DietRowStart-J16,1)<>\"\",INDEX(דיאטה[],DietLastEnd-DietRowStart-J16,4),NA())),NA())","v":135},1]
[{"$nulls":3},{"$f":"IFERROR(IF(INDEX(דיאטה[],DietLastEnd-DietRowStart-J17,1)<>\"\",INDEX(דיאטה[],DietLastEnd-DietRowStart-J17,1),\"\"),\"\")","v":"2017-05-12"},"יום ו",{"$f":"IFERROR((IF(INDEX(דיאטה[],DietLastEnd-DietRowStart-J17,1)<>\"\",INDEX(דיאטה[],DietLastEnd-DietRowStart-J17,7),NA())),NA())","v":15},{"$f":"IFERROR((IF(INDEX(דיאטה[],DietLastEnd-DietRowStart-J17,1)<>\"\",INDEX(דיאטה[],DietLastEnd-DietRowStart-J17,6),NA())),NA())","v":5.43},{"$f":"IFERROR((IF(INDEX(דיאטה[],DietLastEnd-DietRowStart-J17,1)<>\"\",INDEX(דיאטה[],DietLastEnd-DietRowStart-J17,5),NA())),NA())","v":7},{"$f":"IFERROR((IF(INDEX(דיאטה[],DietLastEnd-DietRowStart-J17,1)<>\"\",INDEX(דיאטה[],DietLastEnd-DietRowStart-J17,4),NA())),NA())","v":184},0]
[{"$nulls":3},{"$f":"IFERROR(IF(INDEX(דיאטה[],DietLastEnd-DietRowStart-J18,1)<>\"\",INDEX(דיאטה[],DietLastEnd-DietRowStart-J18,1)),\"\")","v":"2017-05-14"},"יום א",{"$f":"IFERROR((IF(INDEX(דיאטה[],DietLastEnd-DietRowStart-J18,1)<>\"\",INDEX(דיאטה[],DietLastEnd-DietRowStart-J18,7),NA())),NA())","v":21},{"$f":"IFERROR((IF(INDEX(דיאטה[],DietLastEnd-DietRowStart-J18,1)<>\"\",INDEX(דיאטה[],DietLastEnd-DietRowStart-J18,6),NA())),NA())","v":13.5},{"$f":"IFERROR((IF(INDEX(דיאטה[],DietLastEnd-DietRowStart-J18,1)<>\"\",INDEX(דיאטה[],DietLastEnd-DietRowStart-J18,5),NA())),NA())","v":62},{"$f":"IFERROR((IF(INDEX(דיאטה[],DietLastEnd-DietRowStart-J18,1)<>\"\",INDEX(דיאטה[],DietLastEnd-DietRowStart-J18,4),NA())),NA())","v":477},-1]
[]
[null,"נתוני תרשים של ניתוח פעילות גופנית"]
[]
[null,"שורה התחלתית",{"$f":"ROW(פעילות_גופנית[[#Headers],[תאריך]])+1","v":4},"תאריך","יום","משך זמן (דקות)","קלוריות שנשרפו","מספר"]
[null,"ערך פעילות גופנית אחרון",{"$f":"MATCH(9.99E+307,פעילות_גופנית[תאריך])+ExerciseRowStart-1","v":20},{"$f":"IFERROR(IF(INDEX(פעילות_גופנית[],ExerciseLastEnd-ExerciseRowStart-H23,1)<>\"\",INDEX(פעילות_גופנית[],ExerciseLastEnd-ExerciseRowStart-H23,1)),\"\")","v":"2017-05-29"},{"$f":"UPPER(TEXT(D23,\"DDD\"))","v":"יום ב"},{"$f":"IFERROR((IF(INDEX(פעילות_גופנית[],ExerciseLastEnd-ExerciseRowStart-H23,1)<>\"\",INDEX(פעילות_גופנית[],ExerciseLastEnd-ExerciseRowStart-H23,2),0)),0)","v":20},{"$f":"IFERROR((IF(INDEX(פעילות_גופנית[],ExerciseLastEnd-ExerciseRowStart-H23,2)<>\"\",INDEX(פעילות_גופנית[],ExerciseLastEnd-ExerciseRowStart-H23,3),0)),0)","v":195},-1]
[{"$nulls":3},{"$f":"IFERROR(IF(INDEX(פעילות_גופנית[],ExerciseLastEnd-ExerciseRowStart-H24,1)<>\"\",INDEX(פעילות_גופנית[],ExerciseLastEnd-ExerciseRowStart-H24,1)),\"\")","v":"2017-05-28"},"יום א",{"$f":"IFERROR((IF(INDEX(פעילות_גופנית[],ExerciseLastEnd-ExerciseRowStart-H24,1)<>\"\",INDEX(פעילות_גופנית[],ExerciseLastEnd-ExerciseRowStart-H24,2),0)),0)","v":25},{"$f":"IFERROR((IF(INDEX(פעילות_גופנית[],ExerciseLastEnd-ExerciseRowStart-H24,2)<>\"\",INDEX(פעילות_גופנית[],ExerciseLastEnd-ExerciseRowStart-H24,3),0)),0)","v":265},0]
[{"$nulls":3},{"$f":"IFERROR(IF(INDEX(פעילות_גופנית[],ExerciseLastEnd-ExerciseRowStart-H25,1)<>\"\",INDEX(פעילות_גופנית[],ExerciseLastEnd-ExerciseRowStart-H25,1)),\"\")","v":"2017-05-27"},"שבת",{"$f":"IFERROR((IF(INDEX(פעילות_גופנית[],ExerciseLastEnd-ExerciseRowStart-H25,1)<>\"\",INDEX(פעילות_גופנית[],ExerciseLastEnd-ExerciseRowStart-H25,2),0)),0)","v":40},{"$f":"IFERROR((IF(INDEX(פעילות_גופנית[],ExerciseLastEnd-ExerciseRowStart-H25,2)<>\"\",INDEX(פעילות_גופנית[],ExerciseLastEnd-ExerciseRowStart-H25,3),0)),0)","v":290},1]
[{"$nulls":3},{"$f":"IFERROR(IF(INDEX(פעילות_גופנית[],ExerciseLastEnd-ExerciseRowStart-H26,1)<>\"\",INDEX(פעילות_גופנית[],ExerciseLastEnd-ExerciseRowStart-H26,1)),\"\")","v":"2017-05-26"},"יום ו",{"$f":"IFERROR((IF(INDEX(פעילות_גופנית[],ExerciseLastEnd-ExerciseRowStart-H26,1)<>\"\",INDEX(פעילות_גופנית[],ExerciseLastEnd-ExerciseRowStart-H26,2),0)),0)","v":35},{"$f":"IFERROR((IF(INDEX(פעילות_גופנית[],ExerciseLastEnd-ExerciseRowStart-H26,2)<>\"\",INDEX(פעילות_גופנית[],ExerciseLastEnd-ExerciseRowStart-H26,3),0)),0)","v":320},2]
[{"$nulls":3},{"$f":"IFERROR(IF(INDEX(פעילות_גופנית[],ExerciseLastEnd-ExerciseRowStart-H27,1)<>\"\",INDEX(פעילות_גופנית[],ExerciseLastEnd-ExerciseRowStart-H27,1)),\"\")","v":"2017-05-25"},"יום ה",{"$f":"IFERROR((IF(INDEX(פעילות_גופנית[],ExerciseLastEnd-ExerciseRowStart-H27,1)<>\"\",INDEX(פעילות_גופנית[],ExerciseLastEnd-ExerciseRowStart-H27,2),0)),0)","v":45},{"$f":"IFERROR((IF(INDEX(פעילות_גופנית[],ExerciseLastEnd-ExerciseRowStart-H27,2)<>\"\",INDEX(פעילות_גופנית[],ExerciseLastEnd-ExerciseRowStart-H27,3),0)),0)","v":350},3]
[{"$nulls":3},{"$f":"IFERROR(IF(INDEX(פעילות_גופנית[],ExerciseLastEnd-ExerciseRowStart-H28,1)<>\"\",INDEX(פעילות_גופנית[],ExerciseLastEnd-ExerciseRowStart-H28,1)),\"\")","v":"2017-05-24"},"יום ד",{"$f":"IFERROR((IF(INDEX(פעילות_גופנית[],ExerciseLastEnd-ExerciseRowStart-H28,1)<>\"\",INDEX(פעילות_גופנית[],ExerciseLastEnd-ExerciseRowStart-H28,2),0)),0)","v":20},{"$f":"IFERROR((IF(INDEX(פעילות_גופנית[],ExerciseLastEnd-ExerciseRowStart-H28,2)<>\"\",INDEX(פעילות_גופנית[],ExerciseLastEnd-ExerciseRowStart-H28,3),0)),0)","v":295},4]
[{"$nulls":3},{"$f":"IFERROR(IF(INDEX(פעילות_גופנית[],ExerciseLastEnd-ExerciseRowStart-H29,1)<>\"\",INDEX(פעילות_גופנית[],ExerciseLastEnd-ExerciseRowStart-H29,1)),\"\")","v":"2017-05-23"},"יום ג",{"$f":"IFERROR((IF(INDEX(פעילות_גופנית[],ExerciseLastEnd-ExerciseRowStart-H29,1)<>\"\",INDEX(פעילות_גופנית[],ExerciseLastEnd-ExerciseRowStart-H29,2),0)),0)","v":40},{"$f":"IFERROR((IF(INDEX(פעילות_גופנית[],ExerciseLastEnd-ExerciseRowStart-H29,2)<>\"\",INDEX(פעילות_גופנית[],ExerciseLastEnd-ExerciseRowStart-H29,3),0)),0)","v":270},5]
[{"$nulls":3},{"$f":"IFERROR(IF(INDEX(פעילות_גופנית[],ExerciseLastEnd-ExerciseRowStart-H30,1)<>\"\",INDEX(פעילות_גופנית[],ExerciseLastEnd-ExerciseRowStart-H30,1)),\"\")","v":"2017-05-22"},"יום ב",{"$f":"IFERROR((IF(INDEX(פעילות_גופנית[],ExerciseLastEnd-ExerciseRowStart-H30,1)<>\"\",INDEX(פעילות_גופנית[],ExerciseLastEnd-ExerciseRowStart-H30,2),0)),0)","v":45},{"$f":"IFERROR((IF(INDEX(פעילות_גופנית[],ExerciseLastEnd-ExerciseRowStart-H30,2)<>\"\",INDEX(פעילות_גופנית[],ExerciseLastEnd-ExerciseRowStart-H30,3),0)),0)","v":325},6]
[{"$nulls":3},{"$f":"IFERROR(IF(INDEX(פעילות_גופנית[],ExerciseLastEnd-ExerciseRowStart-H31,1)<>\"\",INDEX(פעילות_גופנית[],ExerciseLastEnd-ExerciseRowStart-H31,1)),\"\")","v":"2017-05-21"},"יום א",{"$f":"IFERROR((IF(INDEX(פעילות_גופנית[],ExerciseLastEnd-ExerciseRowStart-H31,1)<>\"\",INDEX(פעילות_גופנית[],ExerciseLastEnd-ExerciseRowStart-H31,2),0)),0)","v":40},{"$f":"IFERROR((IF(INDEX(פעילות_גופנית[],ExerciseLastEnd-ExerciseRowStart-H31,2)<>\"\",INDEX(פעילות_גופנית[],ExerciseLastEnd-ExerciseRowStart-H31,3),0)),0)","v":175},7]
[{"$nulls":3},{"$f":"IFERROR(IF(INDEX(פעילות_גופנית[],ExerciseLastEnd-ExerciseRowStart-H32,1)<>\"\",INDEX(פעילות_גופנית[],ExerciseLastEnd-ExerciseRowStart-H32,1)),\"\")","v":"2017-05-20"},"שבת",{"$f":"IFERROR((IF(INDEX(פעילות_גופנית[],ExerciseLastEnd-ExerciseRowStart-H32,1)<>\"\",INDEX(פעילות_גופנית[],ExerciseLastEnd-ExerciseRowStart-H32,2),0)),0)","v":30},{"$f":"IFERROR((IF(INDEX(פעילות_גופנית[],ExerciseLastEnd-ExerciseRowStart-H32,2)<>\"\",INDEX(פעילות_גופנית[],ExerciseLastEnd-ExerciseRowStart-H32,3),0)),0)","v":335},8]
[{"$nulls":3},{"$f":"IFERROR(IF(INDEX(פעילות_גופנית[],ExerciseLastEnd-ExerciseRowStart-H33,1)<>\"\",INDEX(פעילות_גופנית[],ExerciseLastEnd-ExerciseRowStart-H33,1)),\"\")","v":"2017-05-19"},"יום ו",{"$f":"IFERROR((IF(INDEX(פעילות_גופנית[],ExerciseLastEnd-ExerciseRowStart-H33,1)<>\"\",INDEX(פעילות_גופנית[],ExerciseLastEnd-ExerciseRowStart-H33,2),0)),0)","v":40},{"$f":"IFERROR((IF(INDEX(פעילות_גופנית[],ExerciseLastEnd-ExerciseRowStart-H33,2)<>\"\",INDEX(פעילות_גופנית[],ExerciseLastEnd-ExerciseRowStart-H33,3),0)),0)","v":205},9]
[{"$nulls":3},{"$f":"IFERROR(IF(INDEX(פעילות_גופנית[],ExerciseLastEnd-ExerciseRowStart-H34,1)<>\"\",INDEX(פעילות_גופנית[],ExerciseLastEnd-ExerciseRowStart-H34,1)),\"\")","v":"2017-05-18"},"יום ה",{"$f":"IFERROR((IF(INDEX(פעילות_גופנית[],ExerciseLastEnd-ExerciseRowStart-H34,1)<>\"\",INDEX(פעילות_גופנית[],ExerciseLastEnd-ExerciseRowStart-H34,2),0)),0)","v":20},{"$f":"IFERROR((IF(INDEX(פעילות_גופנית[],ExerciseLastEnd-ExerciseRowStart-H34,2)<>\"\",INDEX(פעילות_גופנית[],ExerciseLastEnd-ExerciseRowStart-H34,3),0)),0)","v":285},10]
[{"$nulls":3},{"$f":"IFERROR(IF(INDEX(פעילות_גופנית[],ExerciseLastEnd-ExerciseRowStart-H35,1)<>\"\",INDEX(פעילות_גופנית[],ExerciseLastEnd-ExerciseRowStart-H35,1)),\"\")","v":"2017-05-17"},"יום ד",{"$f":"IFERROR((IF(INDEX(פעילות_גופנית[],ExerciseLastEnd-ExerciseRowStart-H35,1)<>\"\",INDEX(פעילות_גופנית[],ExerciseLastEnd-ExerciseRowStart-H35,2),0)),0)","v":25},{"$f":"IFERROR((IF(INDEX(פעילות_גופנית[],ExerciseLastEnd-ExerciseRowStart-H35,2)<>\"\",INDEX(פעילות_גופנית[],ExerciseLastEnd-ExerciseRowStart-H35,3),0)),0)","v":125},11]
[{"$nulls":3},{"$f":"IFERROR(IF(INDEX(פעילות_גופנית[],ExerciseLastEnd-ExerciseRowStart-H36,1)<>\"\",INDEX(פעילות_גופנית[],ExerciseLastEnd-ExerciseRowStart-H36,1)),\"\")","v":"2017-05-16"},"יום ג",{"$f":"IFERROR((IF(INDEX(פעילות_גופנית[],ExerciseLastEnd-ExerciseRowStart-H36,1)<>\"\",INDEX(פעילות_גופנית[],ExerciseLastEnd-ExerciseRowStart-H36,2),0)),0)","v":30},{"$f":"IFERROR((IF(INDEX(פעילות_גופנית[],ExerciseLastEnd-ExerciseRowStart-H36,2)<>\"\",INDEX(פעילות_גופנית[],ExerciseLastEnd-ExerciseRowStart-H36,3),0)),0)","v":150},12]